Cogmind - Beta 13 @@@ ROGUE MODE // 2024.04.24 @ 10:45:20 Player: NOGames Result: Self-destructed Performance ------------- Evolutions (2) 1000 Regions Visited (5) 1000 Robots Destroyed (24) 120 Value Destroyed (593) 593 Prototype IDs (23) 460 Alien Tech Used (0) 0 Bonus (321) 321 TOTAL SCORE: 3494 Bonus ------- Follower Combat Kills 21 Aligned with FarCom 300 Cogmind --------- Core Integrity 249/550 Matter 196/300 Energy 140/140 System Corruption 0% Temperature Hot (200) Movement Treading (145) Location -8/Materials Parts ------- > --- POWER (1) -------- Light Deuterium Engine > --- PROPULSION (3) --- Advanced Treads Advanced Treads > --- UTILITY (4) ------ Targeting Computer Hardened Medium Armor Plating > --- WEAPON (3) ------- (None) > --- INVENTORY (5) ---- Ion Engine Improved Ion Engine Aluminum Leg Compact Wheel Compact Wheel Peak State ------------ > --- POWER ------------ Light Deuterium Engine > --- PROPULSION ------- Advanced Treads Advanced Treads Advanced Treads > --- UTILITY ---------- Large Storage Unit Targeting Computer Hardened Medium Armor Plating > --- WEAPON ----------- YOLO Cannon Rocket Launcher > --- INVENTORY -------- Ion Engine Improved Ion Engine Light Treads Aluminum Leg Aluminum Leg Compact Wheel Compact Wheel EM Pulse Gun Grenade Launcher [Rating: 40] Favorites ----------- Power Improved Ion Engine Engine Improved Ion Engine Propulsion Light Treads Treads Light Treads Leg Aluminum Leg Wheel Compact Wheel Utility Small Storage Unit Device High-powered Tractor Beam Storage Small Storage Unit Processor Targeting Computer Protection Hardened Medium Armor Plating Weapon Rocket Launcher Energy Gun EM Pulse Gun Energy Cannon YOLO Cannon Launcher Rocket Launcher Build | -11 -10 -10 -10 -9 -8 ------- Run | Yrd Mat Min Exi Min Mat Slots Evolved 4 | . . . . . 4 Power . | . . . . . . Propulsion 1 | . . . . . 1 Utility 2 | . . . . . 2 Weapon 1 | . . . . . 1 Parts Attached 20 | 2 3 3 4 2 6 Power 2 | . 1 . . . 1 Engine 2 | . 1 . . . 1 Core . | . . . . . . Reactor . | . . . . . . Propulsion 7 | 2 . . 2 . 3 Treads 5 | 2 . . . . 3 Leg . | . . . . . . Wheel 2 | . . . 2 . . Hover . | . . . . . . Flight . | . . . . . . Utility 4 | . 1 1 1 . 1 Device 1 | . 1 . . . . Storage 1 | . . . 1 . . Processor 1 | . . 1 . . . Hackware . | . . . . . . Protection 1 | . . . . . 1 Artifact . | . . . . . . Weapon 7 | . 1 2 1 2 1 Energy Gun 1 | . 1 . . . . Energy Cannon 2 | . . . 1 . 1 Ballistic Gun . | . . . . . . Ballistic Cannon . | . . . . . . Launcher 4 | . . 2 . 2 . Special Weapon . | . . . . . . Impact Weapon . | . . . . . . Slashing Weapon . | . . . . . . Piercing Weapon . | . . . . . . Special Melee Weapon . | . . . . . . Unidentified Prototypes . | . . . . . . Parts Lost 7 | . 3 . . . 4 Power . | . . . . . . Propulsion 1 | . . . . . 1 Utility 2 | . 1 . . . 1 Weapon 4 | . 2 . . . 2 Highest Loss Streak 4 | . 2 . . . 4 To Critical Strikes . | . . . . . . Average Slot Usage (%) 88 | . 97 94 77 90 73 Engine 13 | . 14 14 14 14 9 Treads 16 | . 28 28 . . 7 Wheel 10 | . . . 28 28 13 Device 2 | . 11 . . . . Storage 13 | . 14 14 14 14 9 Processor 8 | . . 9 14 14 9 Protection 1 | . . . . . 8 Energy Gun 6 | . 27 . . . . Energy Cannon 3 | . . . 6 9 9 Launcher 10 | . . 27 . 9 9 Naked Turns . | . . . . . . Heaviest Build 57 | 12 17 19 45 45 57 Greatest Support 66 | 40 40 40 32 32 66 Greatest Overweight (x) 2 | . . . 1 1 2 Average Overweight (x) . | . . . . 1 . Largest Inventory Capacity 15 | 8 8 8 15 15 15 Average Capacity 10 | 8 8 8 8 15 14 Most Carried 10 | 6 8 7 8 10 9 Average Carried 7 | 6 7 6 7 8 7 Final Capacity 15 | 8 8 8 15 15 5 Final Carried 8 | 6 7 7 8 8 5 Class Distribution -------------------- 81% | Mutant 18% | Skirmisher Dominant Class ---------------- Mutant | -10/Materials Mutant | -10/Mines Mutant | -10/Exiles Mutant | -9/Mines Skirmisher | -8/Materials Resources | -11 -10 -10 -10 -9 -8 ----------- Run | Yrd Mat Min Exi Min Mat Matter Collected 386 | 220 30 19 . 40 77 Remotely 30 | . 30 . . . . Salvage Created 545 | . 262 18 . . 265 Parts 32 | . 6 5 . . 21 Haulers Intercepted . | . . . . . . Recyclers Shooed 1 | . . . . . 1 Parts Field Recycled . | . . . . . . Retrieved Matter . | . . . . . . Parts Self-Destructed . | . . . . . . Prevented . | . . . . . . Kills | -11 -10 -10 -10 -9 -8 ------- Run | Yrd Mat Min Exi Min Mat Combat Hostiles Destroyed 16 | . 4 3 . . 9 Guns 3 | . 3 . . . . Cannons 1 | . . . . . 1 AOE 11 | . . 3 . . 8 Classes Destroyed 6 | . 2 2 . . 2 Builder 5 | . . 1 . . 4 Watcher 3 | . 2 . . . 1 Swarmer 6 | . . 3 . . 3 Grunt 8 | . 4 . . . 4 Brawler 1 | . . . . . 1 Sentry 1 | . . . . . 1 Best Kill Streak 10 | . 3 4 . . 10 Combat Bots Only 6 | . 3 3 . . 6 Max Kills in Single Turn 4 | . 1 3 . . 4 Gunslinging . | . . . . . . Exploded 2 | . . 2 . . 2 Melee . | . . . . . . Uniques/NPCs Destroyed . | . . . . . . Combat | -11 -10 -10 -10 -9 -8 -------- Run | Yrd Mat Min Exi Min Mat Hostile Shots Fired 72 | . 42 3 . . 27 Missed 10 | . 6 1 . . 3 Damage Taken 1030 | . 593 14 . . 423 Core 218 | . 167 . . . 51 Absorbed by Shields . | . . . . . . Core Remaining (%) 66 | 100 . . . 33 . Volleys Fired 33 | . 21 2 . . 10 Largest 2 | . 2 1 . . 2 Hottest 133 | . 90 33 . . 133 Shots Fired 50 | . 36 2 . . 12 Gun 36 | . 36 . . . . Cannon 9 | . . . . . 9 Launcher 5 | . . 2 . . 3 Special . | . . . . . . Kinetic . | . . . . . . Thermal 30 | . 21 . . . 9 Explosive 5 | . . 2 . . 3 Electromagnetic 15 | . 15 . . . . Robot Hit Streak 12 | . 12 . . . 2 Robot Miss Streak 5 | . 1 2 . . 5 Penetration Max . | . . . . . . Secondary Targets 1 | . 1 . . . . Max Gunslinging Chain 1 | . 1 . . . . Shots Hit Robots 32 | . 30 . . . 2 Core Hits 30 | . 9 5 . . 16 Critical Kills . | . . . . . . Critical Parts Destroyed . | . . . . . . Critical Strikes 4 | . 4 . . . . Burn 3 | . 3 . . . . Corrupt 1 | . 1 . . . . Melee Attacks . | . . . . . . Impact . | . . . . . . Slashing . | . . . . . . Piercing . | . . . . . . Sneak Attacks . | . . . . . . Combat Hostiles . | . . . . . . Follow-up Attacks . | . . . . . . Damage Inflicted 1969 | . 416 177 . . 1376 Guns 416 | . 416 . . . . Cannons 250 | . . . . . 250 Explosions 1303 | . . 177 . . 1126 Melee . | . . . . . . Ramming . | . . . . . . Kinetic . | . . . . . . Thermal 1371 | . 227 . . . 1144 Explosive 409 | . . 177 . . 232 Electromagnetic 189 | . 189 . . . . Impact . | . . . . . . Slashing . | . . . . . . Piercing . | . . . . . . Highest Corruption 2 | . 2 2 2 2 . Average Corruption 2 | . 2 2 2 2 . Corruption Purged . | . . . . . . Corruption Blocked . | . . . . . . Effects 17 | . 5 7 3 2 . Message Errors 5 | . 3 . 1 1 . Matter Fused 5 | . . 5 . . . Heat Flow Errors 2 | . . 1 1 . . Energy Discharges 1 | . . . . 1 . Parts Fused 1 | . . . 1 . . Data Loss (minor) 2 | . 1 1 . . . Alerts 1 | . 1 . . . . Overload Shots . | . . . . . . Overflow Damage 167 | . . 21 . . 146 Projectiles 83 | . . . . . 83 Explosions 84 | . . 21 . . 63 Melee . | . . . . . . Knockbacks . | . . . . . . Impact . | . . . . . . Kinetic . | . . . . . . Secondary . | . . . . . . Self-Inflicted Damage 154 | . . . . . 154 Shots 2 | . . . . . 2 Rammed . | . . . . . . Targets Rammed . | . . . . . . Kicked . | . . . . . . Crushed . | . . . . . . Highest Temperature 499 | . 499 162 257 . 200 Average Temperature 147 | . 199 86 133 . 59 Received Heat Transfer 369 | . 261 . . . 108 Effects 4 | . 4 . . . . Shutdowns 3 | . 3 . . . . Short Circuit 1 | . 1 . . . . Siege Activations . | . . . . . . Robots Corrupted . | . . . . . . Combat Hostiles . | . . . . . . Parts Fried . | . . . . . . Impact Corruptions . | . . . . . . Robots Melted 1 | . 1 . . . . Combat Hostiles 1 | . 1 . . . . Parts Melted 4 | . 1 . . . 3 Heat Transferred 2298 | . 888 . . . 1410 Parts Sabotaged . | . . . . . . Parts Stolen . | . . . . . . Parts Stripped . | . . . . . . Power Chain Reactions . | . . . . . . Alert | -11 -10 -10 -10 -9 -8 ------- Run | Yrd Mat Min Exi Min Mat Peak Influence 396 | . 158 270 . . 396 Initial 61 | . . 61 . . . Average 70 | . 54 91 . . 105 Maximum Alert Level 1 | . . 1 . . 1 Low Security (%) 96 | 100 100 94 . 100 90 Level 1 3 | . . 5 . . 9 Level 2 . | . . . . . . Level 3 . | . . . . . . Level 4 . | . . . . . . Level 5 . | . . . . . . High Security . | . . . . . . Max Security . | . . . . . . Squads Dispatched 4 | . . . . . 4 Investigation . | . . . . . . Extermination . | . . . . . . Reinforcement 3 | . . . . . 3 Assault . | . . . . . . Garrison 1 | . . . . . 1 Intercept . | . . . . . . Searches Triggered . | . . . . . . Construction Impeded 2 | . . . . . 2 Haulers Reinforced . | . . . . . . Active Scanning Responses . | . . . . . . Cargo Convoy Interrupts . | . . . . . . Stealth | -11 -10 -10 -10 -9 -8 --------- Run | Yrd Mat Min Exi Min Mat Distress Signals . | . . . . . . Communications Jammed . | . . . . . . Distress Signals . | . . . . . . Times Spotted 28 | . 10 6 . 1 11 Peak Tracking Total 7 | . 3 3 . . 7 Tactical Retreats . | . . . . . . Traps | -11 -10 -10 -10 -9 -8 ------- Run | Yrd Mat Min Exi Min Mat Traps Triggered 1 | . 1 . . . . Indirectly . | . . . . . . Trap Hack Attempts . | . . . . . . Triggered . | . . . . . . Disarmed . | . . . . . . Reprogrammed . | . . . . . . Reused . | . . . . . . Traps Extracted . | . . . . . . Installed . | . . . . . . Triggered . | . . . . . . Machines | -11 -10 -10 -10 -9 -8 ---------- Run | Yrd Mat Min Exi Min Mat Machines Disabled 2 | . . . . . 2 Max in Single Turn 1 | . . . . . 1 Machines Repaired . | . . . . . . Machines Dismantled . | . . . . . . Machines Sabotaged . | . . . . . . Overloaded Fab Kills . | . . . . . . Hacking | -11 -10 -10 -10 -9 -8 --------- Run | Yrd Mat Min Exi Min Mat Machines Accessed 4 | . 1 . 2 . 1 Terminals 2 | . 1 . . . 1 Fabricators . | . . . . . . Repair Stations . | . . . . . . Recycling Units . | . . . . . . Scanalyzers . | . . . . . . Garrison Access . | . . . . . . Total Hacks 9 | . 2 . 5 . 2 Successful 6 | . 1 . 5 . . Failed 3 | . 1 . . . 2 Catastrophic . | . . . . . . Database Lockouts . | . . . . . . Manual 5 | . 2 . 1 . 2 Terminals 4 | . 2 . . . 2 Fabricators . | . . . . . . Repair Stations . | . . . . . . Recycling Units . | . . . . . . Scanalyzers . | . . . . . . Garrison Access . | . . . . . . Terminal Hacks 5 | . . . 5 . . Record 4 | . . . 4 . . Derelict Proto ID Bank 1 | . . . 1 . . Fabricator Hacks . | . . . . . . Repair Station Hacks . | . . . . . . Recycling Unit Hacks . | . . . . . . Scanalyzer . | . . . . . . Garrison Access Hacks . | . . . . . . Unauthorized Hacks 1 | . 1 . . . . Terminals 1 | . 1 . . . . Botnet 1 | . 1 . . . . Fabricators . | . . . . . . Repair Stations . | . . . . . . Recycling Units . | . . . . . . Scanalyzers . | . . . . . . Garrison Access . | . . . . . . Data Cores Recovered . | . . . . . . Used . | . . . . . . Hacking Detections 1 | . . . . . 1 Full Trace Events . | . . . . . . Feedback Events . | . . . . . . Feedback Blocked . | . . . . . . Robot Schematics Acquired . | . . . . . . Robots Built . | . . . . . . Authchips . | . . . . . . Time . | . . . . . . Total Robot Build Rating . | . . . . . . Part Schematics Acquired . | . . . . . . Parts Built . | . . . . . . Authchips . | . . . . . . Time . | . . . . . . Total Part Build Rating . | . . . . . . Parts Repaired . | . . . . . . Time . | . . . . . . Parts Recycled . | . . . . . . Recycled Matter . | . . . . . . Retrieved Matter . | . . . . . . Retrieved Components . | . . . . . . Parts Scanalyzed . | . . . . . . Part Schematics Acquired . | . . . . . . Parts Damaged . | . . . . . . Bothacking | -11 -10 -10 -10 -9 -8 ------------ Run | Yrd Mat Min Exi Min Mat Used RIF Installer . | . . . . . . Robots Hacked . | . . . . . . Non-combat . | . . . . . . Combat . | . . . . . . Robot Hacks Applied . | . . . . . . Relay Couplers Released . | . . . . . . Fabnet Peak Effective % . | . . . . . . Robots Rewired . | . . . . . . Allies Hacked . | . . . . . . Hacks Repelled . | . . . . . . Allies | -11 -10 -10 -10 -9 -8 -------- Run | Yrd Mat Min Exi Min Mat Total Allies 4 | . . 4 . . . Largest Group 4 | . . 4 3 3 . Highest-Rated Group 71 | . . 71 40 40 . Highest-Rated Ally 31 | . . 31 16 16 . Total Orders . | . . . . . . Ally Attacks 19 | . . 7 . 12 . Total Damage 143 | . . 51 . 92 . Kills 5 | . . 3 . 2 . Allies Corrupted 1 | . . . . 1 . Allies Melted . | . . . . . . Intel | -11 -10 -10 -10 -9 -8 ------- Run | Yrd Mat Min Exi Min Mat Robot Analysis Total . | . . . . . . Derelict Logs Recovered 1 | . . 1 . . . Drone Launches . | . . . . . . Drone Recoveries . | . . . . . . Exploration | -11 -10 -10 -10 -9 -8 ------------- Run | Yrd Mat Min Exi Min Mat Turns Passed 1576 | 7 385 462 265 176 281 Spaces Moved 1038 | 3 187 272 255 138 183 Core . | . . . . . . Treads 498 | 3 187 272 . . 36 Legs . | . . . . . . Wheels 540 | . . . 255 138 147 Hover . | . . . . . . Flight . | . . . . . . Fastest Speed 100 | 160 160 160 100 115 115 Average Speed 133 | 160 160 160 101 115 122 Slowest Speed 305 | 160 160 160 115 115 305 Overloaded Moves . | . . . . . . Propulsion Burnouts . | . . . . . . Robots Hopped . | . . . . . . Cave-ins Triggered . | . . . . . . Exploration Rate (%) 38 | 2 34 75 61 40 18 Regions Visited 5 Branch Regions 3 Pre-discovered Areas 1 | . . . 1 . . Known Exits Taken 1 | . . 1 . . . Unknown Exits Taken 4 | 1 1 . 1 1 . Scrap Searched 3 | . . 1 . 2 . Spaces Dug 57 | . . . . . 57 Terrain Destroyed 173 | . . 16 . . 157 Melee . | . . . . . . Projectile 7 | . . . . . 7 AOE 166 | . . 16 . . 150 Terrain Rammed . | . . . . . . Walls Destroyed . | . . . . . . Machines Disabled . | . . . . . . Actions | -11 -10 -10 -10 -9 -8 --------- Run | Yrd Mat Min Exi Min Mat Total 1160 | 4 237 296 262 155 206 Wait 59 | . 21 19 . 15 4 Move 1033 | 2 186 271 254 137 183 Hop . | . . . . . . Pick Up 4 | . 4 . . . . Fast Attach 7 | . . 2 1 . 4 Attach 6 | . 2 1 . 2 1 Detach 7 | . . 1 2 1 3 Swap 7 | 2 1 . 3 . 1 Drop 4 | . 2 . 2 . . Fire 33 | . 21 2 . . 10 Melee . | . . . . . . Ram . | . . . . . . Kick . | . . . . . . Crush . | . . . . . . Escape Stasis . | . . . . . . Rewire . | . . . . . . Trap . | . . . . . . Miscellaneous . | . . . . . . Route ------- -11/Scrapyard -10/Materials (discovered 2 exits: [*Mat] / [*Min]) -10/Mines (discovered 3 exits: [*Mat x2] / *Exi) -10/Exiles (discovered 2 exits: [*Min x2]) -9/Mines -8/Materials History --------- Turn | Location | Event 4 | -11/Scrapyard | Discovered new exit (range 2) 8 | -11/Scrapyard | Entered Materials 160 | -10/Materials | Discovered new exit (range 7) 300 | -10/Materials | Build established: Mutant 382 | -10/Materials | Discovered new exit (range 8) 383 | -10/Materials | Core integrity fell below 50% 393 | -10/Materials | Entered Mines 400 | -10/Mines | Received a Rocket Launcher from a helpful Derelict 509 | -10/Mines | Discovered new exit (range 15) 544 | -10/Mines | Discovered new exit (range 8) 549 | -10/Mines | Received a Mining Laser from a helpful Derelict 635 | -10/Mines | Assisted by bots powering up and referring to "LRC-V3" 764 | -10/Mines | Identified exit to Exiles 835 | -10/Mines | Deemed a non-threat by the Exiles lab entrance 855 | -10/Mines | Entered Exiles 855 | -10/Exiles | Accompanied by 3 allies 884 | -10/Exiles | Met 8R-AWN 890 | -10/Exiles | Discovered new exit (range 14) 929 | -10/Exiles | Met EX-HEX 958 | -10/Exiles | Met EX-BIN 972 | -10/Exiles | Aligned with FarCom system 973 | -10/Exiles | Given EX-Vault access code 996 | -10/Exiles | Opened EX-Vault 1006 | -10/Exiles | Found YOLO Cannon 1027 | -10/Exiles | Warned to stay clear of 0b10 Research branches 1038 | -10/Exiles | Exiles lab attacked by MAIN.C 1060 | -10/Exiles | Learned location of Zion (-6) 1107 | -10/Exiles | Discovered new exit (range 14) 1120 | -10/Exiles | Left Exiles lab with YOLO Cannon 1120 | -10/Exiles | Entered Mines 1120 | -9/Mines | Accompanied by 3 allies 1237 | -9/Mines | Assembled infested the area 1242 | -9/Mines | Assisted by a Guerilla fighting off Assembled 1285 | -9/Mines | Discovered new exit (range 9) 1296 | -9/Mines | Entered Materials 1296 | -8/Materials | Evolved 4 slots: Propulsion x1, Utility x2, Weapon x1 1306 | -8/Materials | Lost 3 allies 1568 | -8/Materials | Garrison activated, responded to threat 1574 | -8/Materials | Core integrity fell below 50% 1577 | -8/Materials | Self-destructed Last Messages --------------- 01568_ Terminal disabled. 01568_ U-05 Engineer lays Concrete. 01569_ K-01 Serf collects debris. 01569_ ALERT: Construction progress impeded, dispatching reinforcements to local area. 01569_ U-05 Engineer lays Concrete. 01573_ K-01 Serf collects debris. 01573_ U-05 Engineer lays Concrete. 01573_ U-05 Engineer builds a Wall. 01573_ YOLO Cannon suddenly explodes. 01573_ Rocket Launcher destroyed. 01573_ Lrg. Storage Unit destroyed. 01573_ Adv. Treads destroyed. 01573_ Core damaged (-249). 01573_ G-47 Trooper destroyed. 01574_ U-05 Engineer lays Concrete. 01576_ The unstable cave ceiling collapses. 01576_ K-01 Serf collects debris. 01576_ U-05 Engineer lays Concrete. 01577_ U-05 Engineer builds a Wall. Map ----- +----------------------------------------------------+ | ??# """ # #????????????????????????????????? | | ??# # #?????#####??????????????????????? | | ######+######+####???? #?????????????????????? | | ##### #?????????????????????? | | #?????????????????????? | | ##### #?????????????????????? | | ###+####### #????? ?????????#######???????? | | # /#??# ####### #?????????# #???????? | | # #??# # # #?????????# #???????? | | # #??# # + #?????????# #???????? | | # #??# # # #?????????# #???????? | | # "T" #### # # #?????????# #???????? | | # + """""## #?????????# #???????? | | ############/""""" # #?????????# #???????? | | #???????# # #??######## #???????? | | #???????# """ " # ####!!!!!!# #???????? | | #???????# """ " ## # ##!!!!!!# #???????? | | #???????# """ "### # # # #??????? | | #???????# #### # ## # #????? | | ????????# """ #?## # # ###+####??! | | ???????????# """ = #?## ##### # ! | | ???????????# """ #?## =%= + """ | | ???????????# ###;;;;;## % # """ "Y | | ???????????###########; % # ########??"" "? | | ?????????????????????#; ##### #???????? ? | | ?????????????????????#; @[ % ##??????????? | | ?????????????????????#; = *% #####???????????? | | ?????????????????????#; = #???????????????? | | ?????????????????????## = #???????????????? | | ??????????????????????## % # ?????????????? | | ???????????????????????# k; ???????????? | | ???????????????????????# ; ??????????? | | ???????????????????????## g;; ??????????? | | ????????????????????????### #+##???????????? | | ??????????????????????????? ? ???????????? | | ??????????????????????????? * ???Y?????????? | | ???????????????????????????#u /u* ????????????? | | ??????????????????????????? %! #??????????????? | | ???????????????????????????### ##????????????????? | | ?????????????????????????????????????????????????? | | ?????????????????????????????????????????????????? | | ?????????????????????????????????????????????????? | | ?????????????????????????????????????????????????? | | ?????????????????????????????????????????????????? | | ?????????????????????????????????????????????????? | | ?????????????????????????????????????????????????? | | ?????????????????????????????????????????????????? | | ?????????????????????????????????????????????????? | | ?????????????????????????????????????????????????? | | ?????????????????????????????????????????????????? | +----------------------------------------------------+ Best States ------------- Heat Dissipation 31 Energy Generation 14 Energy Capacity 265 Matter Stores 300 Matter Capacity 300 Sight Range 16 Terrain Scan Density 10 Armor Coverage 225 Evasion (%) 40 Targeting Accuracy 5 Recoil Reduction 3 Item Schematics ----------------- None Robot Schematics ------------------ None Fabricated ------------ Nothing Alien Tech Used ----------------- None Achievements -------------- None Challenges ------------ None Game ------ Seed SuspensionDisruptionWheel Manual? 0 Play Time 00:16:28 Cumulative 21.6 hours Start 2024.04.24 @ 10:30:33 End 2024.04.24 @ 10:45:20 Sessions 1 Manual Loads 0 Difficulty Rogue Special Mode None Game No. 21 Rogue 21 Adventurer 0 Explorer 0 Win Type - Total 1 Types 1/0/0/0/0/0/0/0/0 Lore% 18 Gallery% 27 Achievement% 24 Wizard Run 0 Options --------- Layout 1 ASCII 0 Keyboard 0 Movement Numpad Keybinds 0 Fullscreen 2 Font 24/Smallcaps Map View 50x40 Zoom Use 0% Tactical HUD 1 Map Filters NONE Filters NONE Steam 1 RUN: 7c5560bc-a039-4dc0-b94d-d0969dd65bfe